bitfinex-derivatives/quotes_BTCF0:USTF0_20240830
["timestamp","ask_amount","ask_price","bid_price","bid_amount"]
[1725029746453,0.205065,58775.0,58774.0,0.36105501]
[1725029746861,0.12,58775.0,58774.0,0.44612201]
[1725029747958,0.25,58776.0,58774.0,0.38508005]
[1725029748162,0.25,58776.0,58775.0,0.085065]
[1725029748163,0.04,58776.0,58775.0,0.085065]
[1725029748359,0.04,58776.0,58774.0,0.36105501]
[1725029748360,0.125065,58776.0,58774.0,0.36972129]
[1725029748569,0.04,58776.0,58774.0,0.36972129]
[1725029748757,0.085065,58775.0,58774.0,0.36972129]
[1725029748959,0.12,58775.0,58774.0,0.45478829]
[1725029749267,0.12,58775.0,58774.0,0.36972129]
[1725029749462,0.205065,58775.0,58774.0,0.36972129]
[1725029749657,0.121,58775.0,58774.0,0.45978829]
[1725029750361,0.121,58775.0,58774.0,1.65529529]
[1725029750555,0.18,58781.0,58774.0,1.65529529]
[1725029750556,0.17,58781.0,58774.0,1.47649501]
[1725029750752,0.00025501,58785.0,58784.0,0.085052]
[1725029750952,0.085052,58784.0,58783.0,0.3608]
[1725029751155,0.205052,58784.0,58783.0,0.3608]
[1725029751365,0.205052,58784.0,58774.0,0.00525501]
[1725029751366,0.085065,58775.0,58774.0,0.00525501]
[1725029751566,0.455065,58775.0,58774.0,0.00525501]
[1725029752865,0.455065,58775.0,58774.0,0.00025501]
[1725029753177,0.455065,58775.0,58774.0,0.00525501]
[1725029753552,0.54013,58775.0,58774.0,0.00525501]
[1725029753761,0.54013,58775.0,58774.0,0.00025501]
[1725029753762,0.455065,58775.0,58774.0,0.00025501]
[1725029753956,0.455065,58775.0,58774.0,0.00525501]
[1725029753957,0.456065,58775.0,58774.0,0.00525501]
[1725029754158,0.54113,58775.0,58774.0,0.00525501]
[1725029754669,1.05157,58775.0,58774.0,0.00525501]
[1725029754866,1.67603299,58775.0,58774.0,0.00525501]
[1725029755063,0.08508,58765.0,58764.0,0.3608]
[1725029755258,0.45508,58765.0,58764.0,0.3608]
[1725029756064,0.45508,58765.0,58764.0,0.445881]
[1725029756065,0.12,58765.0,58764.0,0.445881]
[1725029757070,0.128,58765.0,58764.0,0.445881]
[1725029757886,0.88852,58765.0,58759.0,0.00025523]
[1725029758089,0.25,58760.0,58759.0,0.00025523]
[1725029758277,0.25,58760.0,58745.0,0.3608]
[1725029758278,0.455087,58760.0,58745.0,0.3608]
[1725029758589,0.335107,58746.0,58745.0,0.3608]
[1725029758885,0.12,58746.0,58745.0,0.445909]
[1725029759588,0.12,58746.0,58740.0,0.02525523]
[1725029759589,0.085115,58741.0,58740.0,0.02525523]
[1725029759784,0.405115,58741.0,58740.0,0.02525523]
[1725029759984,0.49023,58741.0,58740.0,0.02525523]
[1725029760190,0.4308,58741.0,58731.0,0.3608]
[1725029760378,0.248,58732.0,58731.0,0.3608]
[1725029760579,0.298,58732.0,58731.0,0.3608]
[1725029760889,0.385128,58732.0,58731.0,0.3608]
[1725029761283,0.383128,58732.0,58731.0,0.3608]
[1725029761478,0.298,58732.0,58729.0,0.00835843]
[1725029761681,0.298,58732.0,58724.0,0.3608]
[1725029761881,0.25,58726.0,58724.0,0.36931591]
[1725029762083,0.3,58726.0,58724.0,0.3608]
[1725029762388,0.085138,58725.0,58724.0,0.3608]
[1725029762597,0.195138,58725.0,58724.0,0.3608]
[1725029762782,0.085139,58724.0,58710.0,0.05070571]
[1725029763091,0.3608,58720.0,58711.0,0.6108]
[1725029763276,0.00025545,58723.0,58719.0,0.25]
[1725029763482,0.00025545,58723.0,58722.0,0.085142]
[1725029763681,0.00025545,58723.0,58721.0,0.085142]
[1725029763889,0.01025545,58723.0,58716.0,0.3608]
[1725029764083,0.01025545,58723.0,58710.0,0.41150571]
[1725029764084,0.01025545,58723.0,58714.0,0.085153]
[1725029764280,0.01025545,58723.0,58710.0,0.25092]
[1725029764477,0.3608,58714.0,58706.0,0.25]
[1725029764681,0.3608,58719.0,58711.0,0.25]
[1725029764876,0.3608,58719.0,58718.0,0.085148]
[1725029764877,0.06,58719.0,58718.0,0.085148]
[1725029765086,0.3608,58732.0,58715.0,0.61184]
[1725029765279,0.4708,58732.0,58716.0,0.3608]
[1725029765591,0.085125,58734.0,58716.0,0.3608]
[1725029765592,0.3608,58738.0,58728.0,0.3608]
[1725029765889,0.3608,58732.0,58723.0,0.25]
[1725029766089,0.3608,58732.0,58725.0,0.085137]
[1725029766090,0.3608,58727.0,58725.0,0.085137]
[1725029766390,0.4108,58727.0,58722.0,0.00025545]
[1725029766589,0.085138,58725.0,58722.0,0.00025545]
[1725029766890,0.12,58725.0,58722.0,0.00025545]
[1725029767097,0.001,58723.0,58722.0,0.00025545]
[1725029767288,0.001,58723.0,58718.0,0.02430515]
[1725029767289,0.371,58723.0,58718.0,0.02430515]
[1725029767483,0.3608,58719.0,58709.0,0.05070571]
[1725029767785,0.3608,58719.0,58707.0,0.1304]
[1725029767786,0.25,58718.0,58707.0,0.1304]
[1725029767983,0.25,58708.0,58702.0,0.13570571]
[1725029768289,0.3608,58696.0,58672.0,0.08406221]
[1725029768595,0.085208,58677.0,58676.0,0.0672641]
[1725029768785,0.755836,58679.0,58677.0,0.085]
[1725029768991,0.3608,58678.0,58677.0,0.085]
[1725029769177,0.94208,58678.0,58677.0,0.085]
[1725029769382,0.51128,58678.0,58663.0,0.085]
[1725029769583,0.25,58675.0,58663.0,0.085]
[1725029769878,0.30983,58671.0,58663.0,0.085]
[1725029770083,0.00025567,58676.0,58663.0,0.085]
[1725029770084,0.00025567,58676.0,58669.0,0.3608]
[1725029770285,0.3608,58690.0,58676.0,0.085]
[1725029770484,0.3626,58698.0,58689.0,0.085]
[1725029770786,0.3626,58698.0,58693.0,0.3608]
[1725029770787,0.01,58698.0,58693.0,0.3608]
[1725029771090,0.01,58698.0,58689.0,0.085]
[1725029771091,0.6508,58712.0,58704.0,0.085167]
[1725029771294,0.7108,58712.0,58704.0,0.085167]
[1725029771494,0.7108,58712.0,58701.0,0.3608]
[1725029771495,0.4208,58712.0,58702.0,0.00025567]
[1725029771689,0.06,58712.0,58703.0,0.085169]
[1725029771884,0.3608,58706.0,58702.0,0.00025567]
[1725029772192,0.3708,58706.0,58702.0,0.00025567]
[1725029772489,0.7316,58706.0,58702.0,0.00025567]
[1725029772985,0.3708,58706.0,58702.0,0.00025567]
[1725029773292,0.51104,58705.0,58702.0,0.00025567]
[1725029773593,0.57104,58705.0,58702.0,0.00025567]
[1725029773793,0.63814,58704.0,58702.0,0.00025567]
[1725029773997,0.69814,58704.0,58702.0,0.00025567]
[1725029774190,0.085215,58672.0,58671.0,0.0672641]
[1725029774391,0.30983,58672.0,58663.0,0.085]
[1725029774589,0.3608,58682.0,58673.0,0.085]
[1725029774783,0.06,58682.0,58678.0,0.4458]
[1725029774987,0.3608,58688.0,58684.0,0.085]
[1725029775181,0.05,58688.0,58687.0,0.3608]
[1725029775386,0.00025567,58692.0,58687.0,0.445993]
[1725029775586,0.07025567,58692.0,58691.0,0.085187]
[1725029775797,0.00025567,58692.0,58691.0,0.085187]
[1725029776090,0.085188,58691.0,58679.0,0.3608]
[1725029776298,0.07,58691.0,58684.0,0.3608]
[1725029776682,0.07,58691.0,58687.0,0.085192]
[1725029776887,0.07,58691.0,58679.0,0.3608]
[1725029776888,0.07,58691.0,58683.0,0.00025567]
[1725029777391,0.07,58691.0,58689.0,0.08519]
[1725029777595,0.07,58691.0,58684.0,0.445996]
[1725029777797,0.29,58686.0,58683.0,0.00025567]
[1725029777986,0.085218,58670.0,58654.0,0.6508]
[1725029778187,0.3608,58666.0,58654.0,0.6508]
[1725029778390,0.06,58666.0,58661.0,0.3608]
[1725029779298,0.06,58666.0,58655.0,0.3608]
[1725029779299,0.3608,58665.0,58655.0,0.3608]
[1725029779496,0.3608,58659.0,58651.0,0.085245]
[1725029779699,0.4708,58659.0,58651.0,0.085245]
[1725029779905,0.3608,58653.0,58634.0,0.3608]
[1725029780085,0.085256,58644.0,58634.0,0.446069]
[1725029780290,0.08,58644.0,58634.0,0.446069]
[1725029780485,0.08,58644.0,58643.0,0.3608]
[1725029780891,0.00025567,58650.0,58649.0,0.085248]
[1725029781199,0.00025567,58650.0,58643.0,0.3608]
[1725029781200,0.06025567,58650.0,58643.0,0.3608]
[1725029781499,0.06025567,58650.0,51487.0,0.01]
[1725029781708,0.085271,58633.0,58620.0,0.04985291]
[1725029781994,0.085271,58633.0,58587.0,0.08362353]
[1725029781995,0.3608,58621.0,58605.0,0.29]
[1725029782188,0.3608,58636.0,58620.0,1.0116]
[1725029782388,0.3608,58640.0,58630.0,0.3608]
[1725029782592,0.1245,58675.0,58606.0,0.25413251]
[1725029782593,0.7216,58631.0,58606.0,0.00864165]
[1725029782889,0.5,58642.0,58603.0,0.0256]
[1725029782890,0.3608,58610.0,58604.0,0.085314]
[1725029783096,0.3608,58610.0,58582.0,0.3608]
[1725029783097,0.7216,58605.0,58590.0,0.3]
[1725029783292,0.0002559,58603.0,58601.0,0.29]
[1725029783598,0.3608,58620.0,58606.0,0.08531]
[1725029783599,0.0002559,58608.0,58606.0,0.08531]
[1725029783803,0.3608,58620.0,58619.0,0.085292]
[1725029784191,0.3608,58620.0,58619.0,1.487052]
[1725029784400,0.3608,58620.0,58570.0,0.10041926]
[1725029784401,0.3605441,58611.0,58570.0,0.10041926]
[1725029784704,0.085298,58615.0,58601.0,0.085317]
[1725029784705,0.001,58603.0,58601.0,0.085317]
[1725029784889,0.3608,58615.0,58613.0,0.085301]
[1725029785088,0.3608,58615.0,58607.0,0.085308]
[1725029785398,0.3608,58610.0,58599.0,0.3608]
[1725029785595,0.0002559,58617.0,58609.0,0.3608]
[1725029785794,0.0002559,58617.0,58616.0,0.085296]
[1725029786296,9e-07,58617.0,58616.0,1.557896]
[1725029787499,0.3608,58639.0,58624.0,0.29]
[1725029787795,0.3608,58639.0,58629.0,0.085276]
[1725029787999,0.29,58630.0,58613.0,0.1284]
[1725029788211,0.001,58617.0,58613.0,0.1284]
[1725029788398,0.001,58617.0,58616.0,0.085296]
[1725029788794,0.001,58617.0,58613.0,0.1284]
[1725029789001,0.001,58617.0,58615.0,0.446097]
[1725029789394,0.001,58617.0,58616.0,0.5118]
[1725029789801,0.001,58617.0,58616.0,1.1118]
[1725029790399,0.0002559,58621.0,58616.0,0.5118]
[1725029790598,0.0002559,58621.0,58615.0,0.085297]
[1725029790599,0.0002559,58621.0,58617.0,0.5118]
[1725029790804,0.0002559,58621.0,58618.0,0.085293]
[1725029791002,0.0002559,58621.0,58619.0,0.085291]
[1725029791312,0.0602559,58621.0,58613.0,0.1284]
[1725029791496,0.3608,58619.0,58616.0,0.003]
[1725029791695,0.0002559,58621.0,58616.0,0.293]
[1725029791908,0.0002559,58621.0,58620.0,0.08529]
[1725029792310,0.0002559,58621.0,58620.0,1.19705]
[1725029792895,0.3608,58650.0,58624.0,0.085285]
[1725029793106,0.3608,58643.0,58633.0,0.3608]
[1725029793308,0.3608,58650.0,58642.0,0.3608]
[1725029793499,0.3608,58658.0,58649.0,0.3608]
[1725029793695,0.3608,58658.0,58650.0,0.13]
[1725029793895,0.3608,58651.0,58650.0,0.13]
[1725029794114,0.3608,58658.0,58656.0,0.085237]
[1725029794708,0.3608,58658.0,58656.0,0.51144]
[1725029794906,0.4900009,58657.0,58648.0,0.0002559]
[1725029795097,0.2000009,58649.0,58634.0,0.6508]
[1725029795298,0.2000009,58649.0,58630.0,0.0086]
[1725029795299,0.04,58649.0,58648.0,0.085249]
[1725029795498,0.3608,58656.0,58648.0,0.6]
[1725029795703,0.3608,58661.0,58655.0,0.085239]
[1725029796007,0.2000009,58660.0,58652.0,0.0002559]
[1725029796207,0.3608,58653.0,58652.0,0.0002559]
[1725029796510,0.3608,58653.0,58652.0,0.0854989]
[1725029796712,0.3608,58661.0,58656.0,0.007]
[1725029796914,0.2000009,58660.0,58657.0,0.085236]
[1725029797104,0.01,58660.0,58658.0,0.085234]
[1725029797303,0.0002559,58664.0,58663.0,0.085228]
[1725029797803,0.0002559,58664.0,58663.0,0.596628]
[1725029798012,0.3610559,58664.0,58657.0,0.3608]
[1725029798213,0.3610559,58664.0,58662.0,0.085228]
[1725029798505,0.0002559,58664.0,58662.0,0.085228]
[1725029798709,0.0002559,58664.0,58663.0,0.5114]
[1725029799105,0.085228,58663.0,58662.0,0.00092]
[1725029799306,0.085228,58663.0,58646.0,0.3608]
[1725029799307,0.8708009,58663.0,58632.0,0.3608]
[1725029799511,0.9216009,58653.0,58638.0,0.004]
[1725029799701,0.7416,58653.0,58632.0,0.6508]
[1725029799906,0.7216,58653.0,58651.0,0.085245]
[1725029800110,0.3608,58653.0,58644.0,0.6508]
[1725029800303,0.3608,58659.0,58657.0,0.008]
[1725029800810,0.3608,58659.0,58633.0,0.004]
[1725029800811,0.2000009,58658.0,58635.0,0.3608]
[1725029801008,0.6460429,58653.0,58633.0,0.004]
[1725029801211,0.085244,58652.0,58630.0,0.1312]
[1725029801409,0.085282,58626.0,58621.0,0.004]
[1725029801611,0.3608,58622.0,58611.0,0.00871966]
[1725029801810,0.3608,58622.0,58610.0,0.38517581]
[1725029801811,0.3708,58622.0,58610.0,0.38517581]
[1725029802006,0.3608,58622.0,58612.0,0.29]
[1725029802313,0.3608,58622.0,58620.0,0.08529]
[1725029802508,0.3608,58622.0,58621.0,0.085289]
[1725029802714,0.0002559,58623.0,58622.0,0.085287]
[1725029802909,0.0002559,58623.0,58613.0,0.3608]
[1725029802910,0.0102559,58623.0,58613.0,0.3608]
[1725029803114,0.0102559,58623.0,58606.0,0.3919]
[1725029803115,0.3608,58614.0,58606.0,0.342511]
[1725029803319,0.3608,58607.0,58595.0,0.085326]
[1725029803506,0.3608,58602.0,58592.0,0.1302]
[1725029803710,0.3568,58602.0,58596.0,0.29]
[1725029803911,0.3610559,58607.0,58596.0,0.29]
[1725029803912,0.3610559,58607.0,58606.0,0.085311]
[1725029804208,0.3610559,58607.0,58606.0,0.51188]
[1725029804209,0.0002559,58607.0,58606.0,0.51188]
[1725029804409,0.9881128,58607.0,58582.0,0.0132]
[1725029804609,0.3608,58595.0,58592.0,0.014]
[1725029805011,0.3608,58595.0,58577.0,0.085352]
[1725029805012,0.3826428,58593.0,58577.0,0.085352]
[1725029805214,0.3826428,58593.0,58558.0,0.02564]
[1725029805215,0.085362,58571.0,58566.0,0.004]
[1725029805522,0.085362,58571.0,58556.0,0.746183]
[1725029805523,0.2970569,58571.0,58556.0,0.746183]
[1725029805709,0.3608,58573.0,58556.0,0.3]
[1725029805710,0.3608,58562.0,58556.0,0.3]
[1725029805907,0.3608,58562.0,58551.0,0.3]
[1725029806105,0.2970569,58560.0,58554.0,0.085385]
[1725029806432,0.2970569,58560.0,58543.0,0.02472474]
[1725029806433,0.2970569,58552.0,58539.0,0.3]
[1725029806618,0.2970569,58552.0,58536.0,0.085412]
[1725029806619,0.3608,58545.0,58536.0,0.36938839]
[1725029806808,0.3608,58545.0,58530.0,0.3608]
[1725029807006,0.6578569,58545.0,58538.0,0.3608]
[1725029807219,0.2970569,58543.0,58538.0,0.3608]
[1725029807414,0.00025615,58546.0,58539.0,0.3]
[1725029807610,0.00025615,58546.0,58545.0,0.6608]
[1725029807814,0.00025615,58546.0,58545.0,1.2608]
[1725029808020,0.3,58567.0,58545.0,1.2608]
[1725029808021,0.3608,58567.0,58555.0,0.085385]
[1725029808317,0.2970569,58559.0,58555.0,0.085385]
[1725029808508,0.3608,58566.0,58555.0,0.085385]
[1725029808704,0.3608,58566.0,58550.0,0.3608]
[1725029808705,0.3608,58566.0,58564.0,0.085372]
[1725029808919,0.00025615,58571.0,58565.0,0.3608]
[1725029809108,0.2798569,58577.0,58570.0,0.6608]
[1725029809312,0.00025615,58577.0,58576.0,0.3]
[1725029809507,0.00025615,58577.0,58576.0,0.81216]
[1725029809710,0.36105615,58577.0,58570.0,0.6608]
[1725029810013,0.00025615,58577.0,58576.0,0.3]
[1725029810213,0.00025615,58577.0,58576.0,0.897514]
[1725029810517,1.5e-07,58577.0,58576.0,1.858314]
[1725029811219,0.3608,58603.0,58597.0,0.085323]
[1725029811421,0.3608,58603.0,58597.0,0.3608]
[1725029811422,0.2798569,58601.0,58597.0,0.3608]
[1725029811618,0.2798569,58601.0,58593.0,0.3]
[1725029811619,0.3608,58603.0,58593.0,0.30025615]
[1725029811820,0.3608,58596.0,58593.0,0.00025615]
[1725029812311,0.3608,58603.0,58593.0,0.60025615]
[1725029812622,0.00025615,58605.0,58593.0,0.60025615]
[1725029812623,0.00025615,58605.0,58604.0,0.085314]
[1725029812922,0.00025615,58605.0,58600.0,0.36925356]
[1725029812923,0.2798569,58604.0,58600.0,0.36925356]
[1725029813224,0.2798569,58601.0,58595.0,0.3608]
[1725029813407,0.05,58601.0,58596.0,0.085324]
[1725029813608,0.0405682,58601.0,58600.0,0.736119]
[1725029813812,0.00125615,58605.0,58604.0,0.094314]
[1725029814118,1.5e-07,58605.0,58604.0,0.967034]
[1725029814305,1.5e-07,58605.0,58604.0,1.206234]
[1725029814507,0.55013305,58605.0,58604.0,0.009]
[1725029814717,0.085318,58601.0,58596.0,0.003]
[1725029814911,0.085318,58601.0,58581.0,0.085347]
[1725029814912,0.18907675,58594.0,58581.0,0.085347]
[1725029815109,0.18907675,58588.0,58587.0,0.3608]
[1725029815307,0.3608,58596.0,58587.0,0.3608]
[1725029815519,0.18907675,58588.0,58587.0,0.3608]
[1725029815912,0.18907675,58588.0,58587.0,0.446138]
[1725029816412,0.18607675,58588.0,58587.0,0.446138]
[1725029816619,0.18607675,58588.0,58587.0,0.085338]
[1725029817129,0.00025615,58593.0,58591.0,0.085332]
[1725029817309,0.1863329,58593.0,58591.0,0.085332]
[1725029817513,0.00025615,58593.0,58591.0,0.085332]
[1725029817811,0.1863329,58593.0,58591.0,0.085332]
[1725029818006,0.00025615,58593.0,58591.0,0.085332]
[1725029818311,0.18607675,58592.0,58591.0,0.085332]
[1725029818511,0.18607675,58592.0,58587.0,0.001]
[1725029821020,0.1858206,58566.0,58552.0,0.3608]
[1725029821215,0.1858206,58560.0,58552.0,0.3608]
[1725029821414,0.1858206,58561.0,58552.0,0.36927483]
[1725029821614,0.1858206,58564.0,58560.0,0.6608]
[1725029821824,0.00025615,58562.0,58561.0,0.170752]
[1725029822126,1.5e-07,58567.0,58566.0,0.170738]
[1725029822324,0.1928206,58588.0,58587.0,0.085338]
[1725029822822,0.1858206,58588.0,58587.0,0.085338]
[1725029823028,0.3608,58593.0,58587.0,1.41204]
[1725029823029,0.36105615,58593.0,58587.0,1.41204]
[1725029823228,0.36105615,58593.0,58592.0,0.821462]
[1725029823229,0.00025615,58593.0,58592.0,0.821462]
[1725029823415,0.3608,58613.0,58592.0,0.6508]
[1725029823620,0.1858206,58607.0,58602.0,0.6508]
[1725029823912,0.1858206,58603.0,58587.0,0.00972673]
[1725029824117,0.1858206,58592.0,58587.0,0.001]
[1725029824320,0.1858206,58592.0,58589.0,0.3608]
[1725029824728,0.3608,58592.0,58587.0,0.001]
[1725029825020,0.1858206,58590.0,58587.0,0.001]
[1725029825225,0.3608,58588.0,58587.0,0.001]
[1725029825424,0.00025615,58596.0,58588.0,0.51204]
[1725029825622,0.00025615,58596.0,58595.0,0.446127]
[1725029825827,0.3608,58618.0,58595.0,0.6508]
[1725029826030,0.3608,58614.0,58607.0,0.29]
[1725029826219,0.1858206,58605.0,58596.0,0.6508]
[1725029826525,0.1858206,58604.0,58602.0,0.085317]
[1725029826714,0.1858206,58609.0,58601.0,0.6508]
[1725029826921,0.00025589,58611.0,58609.0,0.085306]
[1725029827225,0.00025589,58611.0,58609.0,0.446106]
[1725029827416,0.00025589,58611.0,58609.0,0.957946]
[1725029827611,0.00025589,58611.0,58609.0,0.446106]
[1725029827815,0.00025589,58611.0,58609.0,0.957946]
[1725029828029,0.00025589,58611.0,58609.0,0.446106]
[1725029828325,0.18607649,58611.0,58608.0,0.001]
[1725029828529,0.00025589,58611.0,58610.0,0.085305]
[1725029828920,0.00025589,58611.0,58610.0,1.197145]
[1725029829423,8.9e-07,58611.0,58610.0,1.197145]
[1725029830027,8.9e-07,58611.0,58610.0,1.22299322]
[1725029830223,8.9e-07,58611.0,58610.0,1.30829822]
[1725029830529,0.3608,58633.0,58612.0,0.085302]
[1725029830823,0.3608,58633.0,58613.0,0.0853]
[1725029830824,0.1858206,58618.0,58613.0,0.0853]
[1725029831024,0.1858206,58614.0,58610.0,0.012]
[1725029831221,0.3608,58620.0,58610.0,0.012]
[1725029831222,0.1858206,58613.0,58610.0,0.012]
[1725029831617,0.00025589,58617.0,58610.0,0.012]
[1725029831814,0.8466206,58611.0,58606.0,0.00025589]
[1725029832019,0.8466206,58611.0,58600.0,0.1]
[1725029832020,0.085318,58601.0,58600.0,0.1]
[1725029832228,0.6419386,58601.0,58600.0,0.1]
[1725029832414,0.085297,58616.0,58600.0,1.21196]
[1725029832415,0.3608,58613.0,58600.0,1.21196]
[1725029832618,0.3608,58607.0,58600.0,0.1]
[1725029832818,0.4008,58613.0,58600.0,0.4608]
[1725029832819,0.3608,58606.0,58600.0,0.4608]
[1725029833020,0.1758206,58608.0,58600.0,0.4608]
[1725029833426,0.1758206,58608.0,58607.0,0.085309]
[1725029833624,0.3608,58613.0,58606.0,0.29]
[1725029833926,0.5366206,58613.0,58606.0,0.29]
[1725029834130,0.00025589,58617.0,58616.0,0.085296]
[1725029834328,0.00025589,58617.0,58612.0,0.29]
[1725029834630,0.00025589,58617.0,58616.0,0.085296]
[1725029834846,0.1758206,58625.0,58615.0,0.3608]
[1725029835138,0.1758206,58625.0,58624.0,0.085285]
[1725029835523,0.26105589,58631.0,58630.0,0.085276]
[1725029835831,0.00196,58640.0,58639.0,0.085263]
[1725029836137,0.00025589,58645.0,58643.0,0.085256]
[1725029836439,0.3608,58649.0,58644.0,0.29]
[1725029836625,0.3608,58649.0,58638.0,0.00025589]
[1725029836626,0.1758206,58640.0,58638.0,0.00025589]
[1725029836820,0.1758206,58639.0,58638.0,0.00025589]
[1725029837430,0.1858206,58639.0,58638.0,0.00025589]
[1725029837629,0.1858206,58639.0,58604.0,0.085313]
[1725029837630,0.085275,58631.0,58618.0,0.29]
[1725029837834,0.15168191,58625.0,58624.0,0.09391147]
[1725029838037,0.15068191,58625.0,58624.0,0.085285]
[1725029838329,0.3608,58632.0,58625.0,0.085283]
[1725029838532,0.15068191,58627.0,58625.0,0.085283]
[1725029838834,0.51148191,58626.0,58620.0,0.00025589]
[1725029839031,0.15068191,58621.0,58620.0,0.00025589]
[1725029839233,0.3608,58626.0,58620.0,0.00025589]
[1725029839421,0.15068191,58621.0,58620.0,0.00025589]
[1725029839627,0.14968191,58621.0,58620.0,0.00025589]
[1725029840632,0.00025589,58632.0,58620.0,0.36105589]
[1725029840940,0.00025589,58632.0,58625.0,0.29]
[1725029841131,0.00025589,58632.0,58631.0,0.736074]
[1725029841541,0.1499378,58632.0,58631.0,0.74454708]
[1725029841729,0.00025589,58632.0,58631.0,0.74454708]
[1725029842325,0.00025589,58632.0,58631.0,1.85622708]
[1725029842936,0.00025589,58632.0,58625.0,0.001]
[1725029842937,0.16368191,58632.0,58625.0,0.001]
[1725029843238,0.16368191,58632.0,58610.0,0.07160108]
[1725029843239,0.14968191,58625.0,58608.0,0.1257]
[1725029843441,0.14968191,58625.0,58607.0,0.3608]
[1725029843442,0.14968191,58613.0,58607.0,0.3608]
[1725029843634,0.14968191,58614.0,58613.0,0.085301]
[1725029843957,0.00025589,58619.0,58612.0,0.3608]
[1725029844134,0.00025589,58619.0,58618.0,0.446093]
[1725029845035,0.4389378,58619.0,58618.0,0.3608]
[1725029845239,0.4389378,58619.0,58608.0,0.00025589]
[1725029845240,0.085306,58609.0,58608.0,0.00025589]
[1725029845541,0.906906,58609.0,58607.0,0.005]
[1725029845730,0.64218,58608.0,58607.0,0.005]
[1725029845933,0.76218,58608.0,58591.0,0.3608]
[1725029846231,0.446118,58601.0,58591.0,0.3608]
[1725029846439,0.3598,58601.0,58595.0,0.00025589]
[1725029846638,0.3598,58601.0,58599.0,0.085321]
[1725029847237,0.3598,58601.0,58600.0,0.101]
[1725029847440,0.00025589,58606.0,58600.0,0.101]
[1725029847744,0.00625589,58608.0,58607.0,0.085309]
[1725029847943,0.3608,58625.0,58607.0,0.29839253]
[1725029848249,0.4308,58625.0,58619.0,0.085291]
[1725029848444,0.4308,58625.0,58616.0,0.085296]
[1725029848636,0.4308,58625.0,58607.0,0.29839253]
[1725029848637,0.07,58625.0,58617.0,0.3608]
[1725029849044,0.07,58625.0,58623.0,0.085286]
[1725029849737,0.00025589,58627.0,58625.0,0.085282]
[1725029850145,0.02025589,58627.0,58615.0,0.00025589]
[1725029850350,0.00025589,58627.0,58617.0,0.3608]
[1725029850643,0.005,58625.0,58624.0,0.085285]
[1725029851240,0.005,58625.0,58623.0,0.001]
[1725029851632,0.045,58625.0,58623.0,0.001]
[1725029851833,0.3608,58624.0,58623.0,0.001]
[1725029852033,0.3808,58624.0,58623.0,0.001]
[1725029852240,0.00025589,58627.0,58625.0,0.085282]
[1725029852449,0.00225589,58627.0,58626.0,0.085282]
[1725029852741,0.03225589,58627.0,58623.0,0.3608]
[1725029852941,0.00225589,58627.0,58623.0,0.3608]
[1725029853143,0.01,58624.0,58623.0,0.3618]
[1725029853339,0.01,58624.0,58623.0,0.447086]
[1725029854250,0.00525589,58627.0,58626.0,0.085282]
[1725029854549,0.01525589,58627.0,58626.0,0.085282]
[1725029854757,0.00525589,58627.0,58626.0,0.085282]
[1725029854946,0.00525589,58627.0,58626.0,1.197002]
[1725029855334,0.3608,58646.0,58638.0,0.085264]
[1725029855648,0.3608,58646.0,58632.0,0.3608]
[1725029855845,0.4608,58646.0,58632.0,0.3608]
[1725029856047,0.4608,58646.0,58639.0,0.085262]
[1725029856239,0.085286,58623.0,58621.0,0.06760108]
[1725029856450,0.085289,58621.0,58607.0,0.07599361]
[1725029856748,0.3608,58611.0,58608.0,0.00025589]
[1725029856947,0.3798,58611.0,58608.0,0.08556389]
[1725029857247,0.00016609,58615.0,58612.0,0.085301]
[1725029857437,0.00016609,58615.0,58608.0,0.44636389]
[1725029857639,0.085302,58613.0,58608.0,0.00025589]
[1725029857844,0.01,58613.0,58608.0,0.08556289]
[1725029858046,0.01,58613.0,58608.0,0.00025589]
[1725029858252,0.01,58613.0,58608.0,0.29025589]
[1725029858442,0.00016609,58615.0,58614.0,0.085299]
[1725029858637,0.03016609,58615.0,58612.0,0.3608]
[1725029858944,0.04961328,58615.0,58612.0,0.3608]
[1725029859140,0.04944719,58614.0,58613.0,0.085301]
[1725029859340,0.00016609,58615.0,58614.0,0.085299]
[1725029859848,0.00016609,58615.0,58614.0,1.197099]
[1725029860052,0.04944719,58623.0,58622.0,0.085287]
[1725029860243,0.3608,58626.0,58625.0,0.085283]
[1725029860545,0.04946723,58628.0,58622.0,0.29]
[1725029860750,0.04946723,58630.0,58621.0,0.3608]
[1725029860951,0.04946723,58628.0,58621.0,0.446089]
[1725029861150,0.085289,58621.0,58620.0,0.00025589]
[1725029861354,0.19475623,58621.0,58620.0,0.00025589]
[1725029861552,0.145289,58621.0,58620.0,0.00025589]
[1725029861755,0.12512848,58621.0,58620.0,0.00025589]
[1725029862055,0.12512848,58621.0,58620.0,0.08554589]
[1725029862352,0.059,58621.0,58620.0,0.08554589]
[1725029862536,0.10849958,58621.0,58620.0,0.08554589]
[1725029862743,0.059,58621.0,58620.0,0.08554589]
[1725029862946,0.10849958,58621.0,58620.0,0.00025589]
[1725029863148,0.02,58621.0,58620.0,0.00125589]
[1725029863352,0.07549958,58621.0,58620.0,0.00125589]
[1725029863551,0.3868,58621.0,58620.0,0.00125589]
[1725029863757,0.472089,58621.0,58620.0,0.00125589]
[1725029864050,1.79856,58621.0,58600.0,0.1]
[1725029864243,0.085318,58601.0,58600.0,0.1]
[1725029864445,0.08,58601.0,58587.0,0.00016811]
[1725029864758,0.3608,58589.0,58587.0,0.00016811]
[1725029865051,0.085337,58588.0,58587.0,0.00868443]
[1725029865348,0.085344,58583.0,58582.0,0.00025589]
[1725029865550,0.7008,58583.0,58563.0,0.004]
[1725029865847,0.3608,58574.0,58561.0,0.43638]